[Event "German Bundesliga 2022-23"]
[Site "Germany"]
[Date "2022.11.26"]
[Round "3.13"]
[White "Swinkels, Robin"]
[Black "Dragnev, Valentin"]
[Result "1/2-1/2"]
[ECO "E01"]
[WhiteElo "2514"]
[BlackElo "2544"]
[Annotator "TA"]
[PlyCount "101"]
[EventDate "2022.10.21"]
[EventType "team-tourn"]
[EventCountry "GER"]
[SourceTitle "playchess.com"]
[Source "ChessBase"]
[SourceQuality "1"]
[TimeControl "40/6000+30:3000+30"]

{[%evp 15,101,0,0,0,18,0,0,0,4,0,11,0,13,13,26,31,25,21,11,25,28,7,3,10,29,0,50,53,36,33,70,64,87,22,45,52,53,67,73,71,68,73,68,46,46,46,46,46,46,46,46,45,52,52,52,52,73,46,46,41,41,41,45,45,83,83,83,83,83,83,83,76,83,72,83,76,83,72,72,72,83,83,83,83,83,83,83,0]} 1. d4 {[%emt 0:00:03]} Nf6 {[%emt 0:00:20]} 2. c4 {[%emt 0:00:03]} e6 {[%emt 0:00:16]} 3. g3 {[%emt 0:00:26]} d5 {[%emt 0:00:13]} 4. Bg2 {[%emt 0:00:21]} Bb4+ {[%emt 0:00:55]} 5. Bd2 {[%emt 0:00:34]} Be7 {[%emt 0:00:12]} 6. Nf3 {[%emt 0:00:42]} O-O {[%emt 0:00:09]} 7. O-O {[%emt 0:00:03]} Nbd7 {[%emt 0:00:08]} 8. Qc2 {[%emt 0:00:54]} c6 {[%emt 0:00:10]} 9. Rc1 {[%emt 0:02:30] E11: Bogo-Indian.} a5 {[%emt 0:01:25]} 10. Bf4 {[%emt 0:04:54]} Nh5 {[%emt 0:00:19]} 11. Bd2 {[%emt 0:11:43] The position is equal.} Nhf6 {[%emt 0:03:44] Prevents e4.} 12. Bf4 {[%emt 0:03:59]} Nh5 {[%emt 0:00:23]} 13. Be3 {[%emt 0:00:07]} Nhf6 {[%emt 0:00:22]} 14. a4 {[%emt 0:00:50]} b6 {[%emt 0:03:12]} 15. cxd5 {[%emt 0:00:49]} Nxd5 {[%emt 0:00:25]} 16. Qxc6 {[%emt 0:11:03]} Ba6 {[%emt 0:00:27]} 17. Qc2 {[%emt 0:00:11]} Rc8 {[%emt 0:00:22]} 18. Nc3 {[%emt 0:03:13]} Nxe3 {[%emt 0:00:13]} 19. fxe3 {[%emt 0:00:04][%cal Bf2e3,Be3e4,Be4e5,Be5f6][%mdl 32]} Bb4 {[%emt 0:00:26] [#]} 20. Qd1 $146 {[%emt 0:13:03]} ({Predecessor:} 20. e4 e5 21. e3 Bb7 22. Kh1 Rc7 23. d5 Qf6 24. Qe2 Nc5 25. Nb5 Rcc8 26. Rc4 {½-½ (50) Kruse,H (2627)-Riccio,E (2613) FICGS email 2020}) 20... Qe7 {[%emt 0:19:57]} (20... Qf6 $11) 21. e4 $14 {[%emt 0:18:22]} Bb7 {[%emt 0:25:56]} 22. e5 {[%emt 0:02:36]} f6 {[%emt 0:01:46]} 23. exf6 $1 {[%emt 0:00:23]} Qxf6 {[%emt 0:00:16] [#]} 24. Qd3 {[%emt 0:07:23]} ({White should try} 24. Na2 $1 $16) 24... Rcd8 {[%emt 0:16:05]} 25. Ne4 {[%emt 0:11:09][%cal Bc3e4,Be4f2,Bf2d3][%mdl 32]} (25. Rf1 {is interesting.} Qh6 26. Ne4 e5 27. Nfg5) 25... Qg6 {[%emt 0:04:09]} 26. Nf2 {[%emt 0:01:21] And now Qxg6 would win. Pair of Knights!} Qxd3 {[%emt 0:13:50]} 27. Nxd3 {[%emt 0:00:04]} Bxf3 {[%emt 0:00:20]} 28. Bxf3 {[%emt 0:00:42] Black must now prevent Nxb4.} Bd2 {[%emt 0:00:07]} 29. Rc6 {[%emt 0:12:28]} Be3+ {[%emt 0:01:01]} 30. Kg2 {[%emt 0:01:13]} Bxd4 {[%emt 0:02:30]} 31. Rxe6 {[%emt 0:00:08]} Nc5 {[%emt 0:00:13]} 32. Nxc5 {[%emt 0:00:13]} (32. Rxb6 $2 {loses.} Nxd3 33. Rb5 Nxb2 $19) 32... Bxc5 {[%emt 0:00:12]} 33. b3 {[%emt 0:01:57]} Rfe8 {[%emt 0:01:08]} 34. Rxe8+ {[%emt 0:00:20]} Rxe8 {[%emt 0:00:02][%mdl 4096] Endgame KRB-KRB} 35. Bd5+ {[%emt 0:00:33]} Kf8 {[%emt 0:00:55]} 36. e4 {[%emt 0:01:04] Threatens to win with Rf1+.} Ke7 {[%emt 0:01:49]} 37. e5 {[%emt 0:00:51]} Rf8 {[%emt 0:00:29]} 38. Ra2 {[%emt 0:02:22]} Bb4 {[%emt 0:04:57]} 39. Rc2 {[%emt 0:00:12] Hoping for Rc7+.} Rd8 {[%emt 0:00:53]} 40. Rc7+ {[%emt 0:00:31] White is better.} Rd7 {[%emt 0:00:15]} 41. Rxd7+ {[%emt 0:50:14]} Kxd7 $16 {[%emt 0:50:02] KB-KB} 42. Kf3 {[%emt 0:00:05]} Ke7 {[%emt 0:00:58]} 43. Ke4 {[%emt 0:00:04]} Bc3 {[%emt 0:00:23]} 44. Bg8 {[%emt 0:00:45]} h6 {[%emt 0:00:32]} 45. Kf5 {[%emt 0:00:19]} Bd4 {[%emt 0:00:15]} 46. Bc4 {[%emt 0:00:35]} Bg1 {[%emt 0:00:41]} 47. h3 {[%emt 0:00:05]} Bd4 {[%emt 0:00:32]} 48. g4 {[%emt 0:00:31]} Bc3 {[%emt 0:00:23]} 49. Ke4 {[%emt 0:01:57]} Be1 {[%emt 0:01:00]} 50. Kd5 {[%emt 0:00:15]} Bf2 {[%emt 0:01:18]} 51. Ke4 {[%emt 0:00:49] Weighted Error Value: White=0.06 (flawless) /Black=0.07 (flawless)} (51. Be2 $16) 1/2-1/2

[Event "German Bundesliga 2022-23"]
[Site "Germany"]
[Date "2022.11.26"]
[Round "3.13"]
[White "Richter, Nils"]
[Black "Jovanovic, Zoran"]
[Result "1-0"]
[ECO "A04"]
[WhiteElo "2387"]
[BlackElo "2513"]
[Annotator "TA"]
[PlyCount "119"]
[EventDate "2022.10.21"]
[EventType "team-tourn"]
[EventCountry "GER"]
[SourceTitle "playchess.com"]
[Source "ChessBase"]
[SourceQuality "1"]
[TimeControl "40/6000+30:3000+30"]

{[%evp 9,119,15,37,30,42,31,38,29,41,35,34,21,43,23,36,20,26,26,77,71,71,76,80,64,65,58,122,61,120,113,114,111,112,4,170,109,127,79,80,63,114,116,157,82,89,47,62,60,68,86,77,37,23,37,35,43,81,81,81,81,92,92,92,13,92,92,92,88,88,88,267,275,275,270,245,250,803,662,737,545,616,569,455,346,296,281,710,803,442,402,2323,2629,29979,29980,29980,29981,29981,29976,29974,29974,6103,5202,29981,29975,29983,29984,29984,29985,29986,29987,29986,29987]} 1. Nf3 {[%emt 0:00:02]} d6 {[%emt 0:02:06]} 2. d4 {[%emt 0:00:08]} g6 {[%emt 0:01:31]} 3. g3 {[%emt 0:00:08]} Bg7 {[%emt 0:00:41]} 4. Bg2 {[%emt 0:00:08]} Nf6 {[%emt 0:07:10]} 5. O-O {[%emt 0:00:09]} c6 {[%emt 0:02:07]} 6. c4 {[%emt 0:01:21] A49: 1 d4 Nf6 2 Nf3 g6 3 g3: Anti-King's Indian systems.} Be6 {[%emt 0:00:54]} 7. Nbd2 {[%emt 0:07:09]} d5 {[%emt 0:01:16]} 8. b3 {[%emt 0:04:00] White is slightly better.} O-O {[%emt 0:06:09]} 9. Bb2 {[%emt 0:00:43] [#]} a5 $146 {[%emt 0:00:56]} ({Predecessor:} 9... Qc8 10. Rc1 dxc4 11. bxc4 Bh3 12. e4 Bxg2 13. Kxg2 Na6 14. Qe2 Nc7 15. Ne5 Nd7 {½-½ (37) Nagy,A (2156)-Smaraglay,B (1984) Hungary 2019}) 10. Re1 {[%emt 0:11:19]} Na6 {[%emt 0:18:03]} 11. Ne5 {[%emt 0:11:53]} Qb6 {[%emt 0:11:39]} 12. e4 {[%emt 0:13:15]} dxe4 {[%emt 0:07:48]} 13. Nxe4 {[%emt 0:00:43]} Rad8 {[%emt 0:01:49]} (13... Nxe4 $11 14. Rxe4 (14. Bxe4 a4 $11) 14... Rfd8) 14. Ng5 $16 {[%emt 0:05:15] Threatens to win with Nxe6.} Bf5 {[%emt 0:02:36]} 15. g4 {[%emt 0:04:00]} Bc8 {[%emt 0:11:53]} 16. Qe2 {[%emt 0:01:29]} (16. h3 {keeps more tension.} h6 17. Ngxf7 Rxf7 18. Qd2) 16... Qc7 {[%emt 0:00:09][%cal Of6g4]} 17. h3 $36 {[%emt 0:05:01][%cal Od4d5][%mdl 2048] White fights for an advantage.} h6 {[%emt 0:05:00]} (17... Ne8 $14) 18. Ngf3 {[%emt 0:00:02]} ({White should play} 18. Ngxf7 $16 Rxf7 19. Nxf7 (19. Nxg6 e6 $11) 19... Kxf7 20. Rad1) 18... Nd7 {[%emt 0:01:55]} ({Better is} 18... h5 $1 $14) 19. Rad1 {[%emt 0:03:45]} Nxe5 {[%emt 0:07:08]} 20. Nxe5 {[%emt 0:00:03]} e6 {[%emt 0:01:50]} 21. Qf3 {[%emt 0:08:44]} (21. Bc3 $16) 21... Nb8 $2 {[%emt 0:03:35]} (21... Nb4 $1 $11) 22. Qg3 {[%emt 0:03:04]} (22. Ba3 $18) 22... Rfe8 {[%emt 0:01:44]} 23. Qf4 {[%emt 0:04:51]} ({White should try} 23. Rf1) 23... g5 {[%emt 0:04:34]} 24. Qf3 {[%emt 0:00:34]} Qe7 {[%emt 0:00:36]} (24... c5 $14) 25. Bc3 {[%emt 0:05:13]} Nd7 {[%emt 0:00:59]} 26. Nxd7 {[%emt 0:04:46] White is much more active. The black rooks are badly placed.} (26. Bxa5 $142 Nxe5 27. dxe5) 26... Rxd7 {[%emt 0:01:43]} 27. d5 {[%emt 0:00:01]} (27. Bxa5 Bxd4 28. Rd2 Rf8 $11) 27... cxd5 {[%emt 0:02:33]} 28. cxd5 {[%emt 0:01:51]} Bxc3 {[%emt 0:00:53]} 29. Qxc3 {[%emt 0:00:21]} Qd8 {[%emt 0:01:14]} 30. dxe6 {[%emt 0:05:41]} Rxe6 {[%emt 0:01:38][%mdl 64] [#]} (30... Rxd1 31. exf7+ Kxf7 32. Qf3+ Qf6 33. Qxd1 $16 (33. Rxd1 Qxf3 34. Bxf3 Ke7 $16)) 31. Rxd7 {[%emt 0:00:38]} Rxe1+ {[%emt 0:01:57]} 32. Qxe1 {[%emt 0:00:01]} Bxd7 {[%emt 0:00:58]} 33. Bxb7 {[%emt 0:00:42][%mdl 4096] Endgame KQB-KQB} Be6 {[%emt 0:00:05]} 34. Ba6 {[%emt 0:02:28]} Qc7 {[%emt 0:00:36] Inhibits Bc4.} 35. Bc4 {[%emt 0:01:13]} Bxc4 {[%emt 0:00:57]} 36. Qc3 {[%emt 0:01:53]} (36. Qc1 $16) 36... Qb6 {[%emt 0:00:38]} 37. Qxc4 {[%emt 0:01:27] aiming for a3. KQ-KQ. Black is on the road to losing.} ({Reject} 37. bxc4 Qb1+ 38. Kg2 Qxa2 $11) 37... Qf6 {[%emt 0:00:24]} 38. Kg2 {[%emt 0:01:38]} Qb2 {[%emt 0:00:23]} 39. Qa4 {[%emt 0:02:54]} Qd2 {[%emt 0:00:26]} (39... Qc3 $16) 40. Qe8+ $18 {[%emt 0:00:58]} Kg7 {[%emt 0:00:10]} 41. Qe5+ {[%emt 0:50:57]} Kg8 {[%emt 0:04:33]} 42. a3 {[%emt 0:00:00][%cal Ba2a3,Ba3b4,Bb4b5,Bb5b6,Bb6b7][%mdl 32]} Qd8 $2 {[%emt 0:03:02]} (42... Qd7 43. Qxa5 Qc6+ 44. Kg1 Qc1+ 45. Kh2 Qf4+ 46. Kg2 Qe4+ 47. Kg1 (47. Kh2 Qf3 $18) 47... Qf3 48. Qd8+ Kh7) 43. b4 {[%emt 0:00:00]} Qa8+ {[%emt 0:00:42]} 44. Kh2 {[%emt 0:00:00]} axb4 {[%emt 0:22:23]} 45. axb4 {[%emt 0:00:00]} Qf3 {[%emt 0:00:04]} 46. Qf5 {[%emt 0:00:00]} Qc3 {[%emt 0:03:05]} 47. b5 {[%emt 0:00:00] [#] Hoping for b6.} Qd4 {[%emt 0:00:05] Inhibits b6.} (47... Qc7+ 48. Kg1 Kg7) 48. Kg2 {[%emt 0:00:00]} Kg7 {[%emt 0:03:44]} 49. Qf3 {[%emt 0:00:00]} Qb2 {[%emt 0:03:22]} (49... Kg8 $142 50. Qc6 Qa4) 50. Qc6 {[%emt 0:00:00]} Qb4 {[%emt 0:01:37]} 51. b6 {[%emt 0:00:00]} Qb2 {[%emt 0:03:54]} 52. b7 {[%emt 0:00:00]} Qb3 {[%emt 0:00:03]} 53. Qe4 {[%emt 0:00:00]} Qb5 {[%emt 0:03:48]} 54. Kg1 {[%emt 0:00:00]} Kf8 {[%emt 0:00:28]} 55. Qf3 {[%emt 0:00:00] Intending Qa3+ and mate.} Qb1+ {[%emt 0:00:58]} 56. Kh2 {[%emt 0:00:00] White mates.} Qb5 {[%emt 0:00:10]} 57. Qa3+ {[%emt 0:00:00]} Kg7 {[%emt 0:00:15]} 58. Qc3+ {[%emt 0:00:00]} Kg6 {[%emt 0:03:03]} 59. Qc7 {[%emt 0:00:00]} Qb2 {[%emt 0:01:10]} 60. Kg2 {[%emt 0:00:00] Weighted Error Value: White=0.21 (precise) /Black=0.36} ({Worse is} 60. b8=B Qxf2+ 61. Kh1 Qf1+ 62. Kh2 Qf2+ 63. Kh1 Qf1+ 64. Kh2 Qf2+ $11) 1-0

[Event "German Bundesliga 2022-23"]
[Site "Germany"]
[Date "2022.11.26"]
[Round "3.14"]
[White "Bogner, Sebastian"]
[Black "Cyborowski, Lukasz"]
[Result "1/2-1/2"]
[ECO "C42"]
[WhiteElo "2540"]
[BlackElo "2495"]
[Annotator "TA"]
[PlyCount "88"]
[EventDate "2022.10.21"]
[EventType "team-tourn"]
[EventCountry "GER"]
[SourceTitle "playchess.com"]
[Source "ChessBase"]
[SourceQuality "1"]
[TimeControl "40/6000+30:3000+30"]

{[%evp 19,88,35,36,24,31,31,23,19,48,44,40,41,39,37,30,27,25,21,26,28,27,25,28,36,32,28,31,23,18,0,6,4,9,8,8,6,8,12,15,0,0,3,21,0,8,-36,0,0,5,-17,-22,-42,0,-16,10,9,10,8,14,0,0,-110,-20,-58,-54,-44,-4,-10,0,-6,0]} 1. e4 {[%emt 0:00:09]} e5 {[%emt 0:00:44]} 2. Nf3 {[%emt 0:00:15]} Nf6 {[%emt 0:00:59][%cal Bg8f6,Bf6e4,Be4d6][%mdl 32]} 3. Nxe5 {[%emt 0:00:38]} d6 {[%emt 0:00:07]} 4. Nf3 {[%emt 0:00:08]} Nxe4 {[%emt 0:00:08]} 5. d4 {[%emt 0:00:59]} d5 {[%emt 0:01:06]} 6. Bd3 {[%emt 0:00:09]} Be7 {[%emt 0:03:58]} 7. O-O {[%emt 0:00:47]} Nd6 {[%emt 0:13:58]} 8. Re1 {[%emt 0:19:12]} O-O {[%emt 0:03:16]} 9. Bf4 {[%emt 0:20:06]} Re8 {[%emt 0:15:44]} 10. Nbd2 {[%emt 0:12:14][%cal Bb1d2,Bd2f1,Bf1g3][%mdl 32]} Nd7 {[%emt 0:05:39]} 11. Nf1 {[%emt 0:02:42] C42: Petroff Defence: 3 Nxe5 and unusual White 3rd moves.} Nf8 {[%emt 0:04:24]} 12. h3 {[%emt 0:09:22]} c6 {[%emt 0:10:56]} 13. c3 {[%emt 0:03:43] [#] White has an edge.} Be6 $146 {[%emt 0:05:11]} ({Predecessor:} 13... Ne6 14. Be5 f6 15. Bh2 g6 16. Ne3 Ng7 17. Qb3 Be6 18. Re2 Qd7 19. Rae1 Rac8 {½-½ (41) Simal Moreira,L (2349)-Nemec,Z (2317) LSS email 2018}) 14. Qc2 {[%emt 0:02:34]} Qd7 {[%emt 0:06:31]} 15. Ne5 {[%emt 0:04:13]} Qc8 {[%emt 0:00:39]} 16. Ng3 {[%emt 0:00:57]} f6 {[%emt 0:03:35]} 17. Ng4 {[%emt 0:03:09]} Qd7 {[%emt 0:01:31]} (17... Bxg4 $2 18. Rxe7 Rxe7 19. Bxd6 $18) 18. Re2 {[%emt 0:06:41]} (18. Re3 {is interesting.} Nc4 19. Rf3 Bf7 20. Nf5) 18... Bxg4 {[%emt 0:06:40]} 19. hxg4 {[%emt 0:00:02] Strongly threatening Nf5.} g6 {[%emt 0:05:46] Inhibits Nf5.} (19... Qxg4 20. Rxe7 $1 {[%mdl 512]} Qxf4 21. Bxh7+ $1 {[%mdl 512]} (21. Nh5 Qh6 $14) 21... Kh8 22. Rxg7 $1 $16) 20. Rae1 {[%emt 0:04:30]} Bd8 $1 {[%emt 0:00:29]} 21. Rxe8 {[%emt 0:06:33]} Nxe8 {[%emt 0:00:05]} 22. Qb3 {[%emt 0:00:45]} b5 {[%emt 0:04:20] Against c4} 23. a4 {[%emt 0:01:42][%cal Ra4b5]} (23. Qd1 {simplifies} Bc7 24. Bxc7 Nxc7 25. f4) 23... a6 {[%emt 0:00:08]} 24. Qa3 {[%emt 0:02:23] Black must now prevent axb5.} Ne6 {[%emt 0:04:20]} 25. Bh6 {[%emt 0:02:01]} Be7 {[%emt 0:01:08]} 26. Qa2 {[%emt 0:01:58] next axb5 is good for White.} N8c7 {[%emt 0:01:00]} 27. axb5 {[%emt 0:01:44]} axb5 {[%emt 0:00:16]} 28. Qb1 {[%emt 0:00:03][%cal Od3g6] aiming for Bxg6!} Bf8 {[%emt 0:00:47]} 29. Bd2 {[%emt 0:00:43]} Bd6 {[%emt 0:01:03]} 30. Ne2 {[%emt 0:02:19]} Re8 {[%emt 0:02:48]} (30... Ng7 $5 {[%cal Rd7g4]}) 31. Qc1 {[%emt 0:00:51]} Ng7 {[%emt 0:01:45]} 32. g5 {[%emt 0:00:50]} fxg5 {[%emt 0:00:42]} 33. Bxg5 {[%emt 0:00:00]} Nce6 {[%emt 0:00:25]} 34. Bd2 {[%emt 0:01:33]} (34. Bh6 {with more complications.} Qf7 35. Ng3 Qf6 36. Qd2) 34... Qf7 {[%emt 0:00:48]} 35. Rf1 {[%emt 0:00:51]} Nf5 {[%emt 0:01:33]} 36. g3 {[%emt 0:00:58]} Nfg7 {[%emt 0:04:15]} 37. Kg2 {[%emt 0:00:38] Against Qf3+} Rf8 {[%emt 0:00:22]} 38. Ng1 {[%emt 0:00:26] Against Qf3+} Nh5 {[%emt 0:00:51]} 39. Be2 {[%emt 0:00:41]} Qf5 {[%emt 0:00:37]} 40. Qd1 {[%emt 0:00:27] [#]} (40. Be3 $11) 40... Nhf4+ $1 {[%emt 0:01:11][%mdl 512]} 41. Kh1 {[%emt 0:08:01] Threatens to win with Bg4.} (41. Kh2 h5) 41... Nxe2 {[%emt 0:19:01]} 42. Qxe2 {[%emt 0:03:44]} Ng7 {[%emt 0:00:37][%cal Od6g3] And now ...Bxg3! would win.} 43. Kg2 {[%emt 0:00:56]} Re8 {[%emt 0:02:08]} 44. Qd1 {[%emt 0:02:31]} Qe4+ {[%emt 0:07:10] Weighted Error Value: White=0.13 (very precise) /Black=0.09 (flawless)} 1/2-1/2

[Event "German Bundesliga 2022-23"]
[Site "Germany"]
[Date "2022.11.26"]
[Round "3.14"]
[White "Kovacevic, Aleksandar"]
[Black "Deuer, Marius"]
[Result "1-0"]
[ECO "E15"]
[WhiteElo "2470"]
[BlackElo "2338"]
[Annotator "TA"]
[PlyCount "115"]
[EventDate "2022.10.21"]
[EventType "team-tourn"]
[EventCountry "GER"]
[SourceTitle "playchess.com"]
[Source "ChessBase"]
[SourceQuality "1"]
[TimeControl "40/6000+30:3000+30"]

{[%evp 19,114,4,16,8,12,1,1,0,0,0,14,12,20,22,16,16,71,12,9,20,10,15,16,18,11,10,19,0,12,9,8,25,47,12,55,19,68,69,78,63,101,62,101,101,101,107,102,102,112,84,117,118,116,117,117,0,115,120,102,94,115,78,110,105,88,0,92,68,242,217,241,199,224,188,201,203,200,200,194,217,270,277,313,304,378,277,745,666,1416,1241,1139,957,744,701,29998,29999,29999]} 1. Nf3 {[%emt 0:00:15]} Nf6 {[%emt 0:00:22]} 2. d4 {[%emt 0:00:59]} e6 {[%emt 0:00:24]} 3. c4 {[%emt 0:01:37]} b6 {[%emt 0:00:24]} 4. g3 {[%emt 0:00:10]} Ba6 {[%emt 0:00:16]} 5. b3 {[%emt 0:00:39]} Bb4+ {[%emt 0:00:16]} 6. Bd2 {[%emt 0:00:34]} Be7 {[%emt 0:00:51]} 7. Nc3 {[%emt 0:01:22]} d5 {[%emt 0:00:35]} 8. cxd5 {[%emt 0:00:20]} exd5 {[%emt 0:00:08]} 9. Bg2 {[%emt 0:00:21]} O-O {[%emt 0:02:02]} 10. O-O {[%emt 0:00:22]} Re8 {[%emt 0:03:12]} 11. Ne5 {[%emt 0:05:57][%cal Ob3b4] 11.Rc1 gains popularity. E15: Queen's Indian: 4 g3 sidelines, 4 g3 Ba6 and 4 g3 Bb7 early deviations.} Bb7 {[%emt 0:01:14] Inhibits b4.} 12. Rc1 {[%emt 0:01:28]} Nbd7 {[%emt 0:01:34][%cal Bb8d7,Bd7f8,Bf8e6][%mdl 32]} 13. Bf4 {[%emt 0:03:39] The position is equal.} Nf8 {[%emt 0:03:37]} 14. Rc2 {[%emt 0:02:52]} Ne6 {[%emt 0:07:10]} 15. Bc1 {[%emt 0:01:07] [#]} a6 $146 {[%emt 0:09:11]} ({Predecessor:} 15... Bb4 16. Bb2 Qe7 17. e3 c5 18. Ne2 Rac8 19. a3 Ba5 20. Nf4 Nxf4 21. exf4 Ne4 {0-1 (31) Jumabayev,R (2654)-Martirosyan,H (2617) Chess.com INT 2020}) 16. e3 {[%emt 0:10:18]} Bd6 {[%emt 0:06:46]} 17. Bb2 {[%emt 0:11:04]} c5 {[%emt 0:05:17]} (17... Rc8 $11 {keeps the balance.}) 18. Nc4 {[%emt 0:05:19] White is more active.} (18. Na4 $16) 18... cxd4 $11 {[%emt 0:07:21]} (18... Bf8 {feels hotter.} 19. dxc5 Nxc5 20. Rd2 Nce4) 19. Nxd6 {[%emt 0:02:46]} Qxd6 {[%emt 0:00:08]} 20. exd4 {[%emt 0:01:45]} Rac8 {[%emt 0:05:00]} 21. Qd3 {[%emt 0:13:47]} b5 {[%emt 0:03:17]} 22. Rfc1 {[%emt 0:03:10]} h6 {[%emt 0:04:27]} 23. Nd1 {[%emt 0:02:51][%cal Bc3d1,Bd1e3,Be3g4][%mdl 32]} Rxc2 {[%emt 0:10:15]} 24. Rxc2 {[%emt 0:00:35]} Ne4 {[%emt 0:03:29]} 25. Ne3 {[%emt 0:01:33]} Qd7 {[%emt 0:02:15]} 26. Re2 {[%emt 0:05:01]} (26. f3 $5 {[%cal Rf3e4]} Nf6 27. Bc3 $14) 26... Rd8 {[%emt 0:05:41]} 27. Ng4 {[%emt 0:10:20]} (27. f3 $5 {[%cal Rf3e4]}) 27... Rc8 {[%emt 0:06:20]} (27... Qc7 $11 {should be considered.}) 28. f3 $14 {[%emt 0:01:28]} Nd6 {[%emt 0:02:40]} 29. Bh3 {[%emt 0:02:40] Strongly threatening Ne5.} (29. Ne5 $5 {[%cal Re5d7]} Qc7 30. Bh3 $16) 29... Qc7 {[%emt 0:07:21]} 30. Ba3 {[%emt 0:06:02]} (30. Nxh6+ {is interesting.} gxh6 31. Bxe6 fxe6 32. Rxe6 Ne8 33. Rxe8+ Rxe8 34. Qg6+) 30... Re8 {[%emt 0:06:17] [#]} 31. Nxh6+ $1 {[%emt 0:08:34][%mdl 512]} gxh6 {[%emt 0:00:53] [#]} 32. Bxe6 {[%emt 0:00:21]} Rxe6 {[%emt 0:00:59]} 33. Rxe6 {[%emt 0:00:14][%mdl 64] Remove Defender} fxe6 {[%emt 0:00:07]} 34. Qg6+ {[%emt 0:00:26]} Kh8 {[%emt 0:02:25]} 35. Qxh6+ {[%emt 0:01:32]} Kg8 {[%emt 0:00:05]} 36. Qg6+ {[%emt 0:04:13]} (36. Qxe6+ Nf7 $14) 36... Kh8 {[%emt 0:00:41]} 37. Qh6+ {[%emt 0:01:10]} (37. Qxe6 $6 Nf7 $11) 37... Kg8 {[%emt 0:00:07]} 38. Qf4 {[%emt 0:00:33] Against Nf5} ({Resist} 38. Qxe6+ Nf7 $14) 38... b4 {[%emt 0:01:43]} 39. Bxb4 {[%emt 0:00:09]} Nb5 {[%emt 0:00:05] ...Qxf4 is the strong threat.} 40. Qg4+ {[%emt 0:01:30][%mdl 1024] White has strong compensation.} (40. Qxc7 {simplifies} Nxc7 41. a4 Bc6 42. g4) 40... Kf7 {[%emt 0:04:57]} 41. Qh5+ {[%emt 0:01:27]} Kg7 {[%emt 0:04:16]} 42. Qg4+ {[%emt 0:05:48]} Kf7 {[%emt 0:02:49] [#]} 43. Bc5 $1 {[%emt 0:01:54] Threatens to win with h4.} Kf6 $2 {[%emt 0:15:18] Loses the game.} (43... e5 $1 $14) 44. a4 $18 {[%emt 0:06:55]} Nc3 {[%emt 0:02:14]} 45. h4 {[%emt 0:05:34]} Qg7 {[%emt 0:07:36] Prevents Qg5+.} 46. Qf4+ {[%emt 0:05:31]} Kg6 {[%emt 0:00:06] White must now prevent ...Ne2+.} 47. Qd2 {[%emt 0:01:31] Prevents Ne2+.} Kh7 {[%emt 0:05:46]} 48. Kf2 {[%emt 0:00:44]} ({Much less strong is} 48. Qxc3 Qxg3+ 49. Kf1 Bc6 50. Qd3+ Kg7) 48... Ne4+ {[%emt 0:01:44]} 49. fxe4 {[%emt 0:00:07]} dxe4 {[%emt 0:00:05][%mdl 4096] Endgame KQB-KQB} 50. Qf4 {[%emt 0:01:57] Against Qf7} Bd5 {[%emt 0:01:50]} 51. b4 {[%emt 0:00:37]} Qd7 {[%emt 0:04:44]} 52. Bd6 {[%emt 0:01:07]} Qe8 {[%emt 0:01:55]} (52... e5 53. Qxe5 Qf7+ 54. Kg1 Qe6 55. Qh5+ Kg8) 53. b5 {[%emt 0:04:59]} axb5 {[%emt 0:02:24]} 54. axb5 {[%emt 0:00:03]} e5 {[%emt 0:01:24]} 55. Qf5+ {[%emt 0:02:20]} ({Less strong is} 55. dxe5 Qxb5 56. Qf5+ Kh8 $18) 55... Kg8 {[%emt 0:00:14]} 56. Bxe5 {[%emt 0:00:25] Qg5+ would kill now.} Qxb5 {[%emt 0:00:33]} 57. Qg6+ {[%emt 0:00:07]} Kf8 {[%emt 0:00:03]} 58. Bd6# {[%emt 0:00:04] Weighted Error Value: White=0.19 (very precise) /Black=0.36} 1-0

[Event "German Bundesliga 2022-23"]
[Site "Germany"]
[Date "2022.11.26"]
[Round "3.15"]
[White "Jaracz, Pawel"]
[Black "Lokander, Martin"]
[Result "1/2-1/2"]
[ECO "C70"]
[WhiteElo "2461"]
[BlackElo "2443"]
[Annotator "TA"]
[PlyCount "48"]
[EventDate "2022.10.21"]
[EventType "team-tourn"]
[EventCountry "GER"]
[SourceTitle "playchess.com"]
[Source "ChessBase"]
[SourceQuality "1"]
[TimeControl "40/6000+30:3000+30"]

{[%evp 9,48,39,79,10,12,4,27,12,24,14,22,0,-14,9,11,-29,0,-17,12,-33,-8,6,8,0,0,0,18,13,10,0,35,26,19,29,28,8,29,10,16,11,15]} 1. e4 {[%emt 0:00:17]} e5 {[%emt 0:00:05]} 2. Nf3 {[%emt 0:00:17]} Nc6 {[%emt 0:00:06]} 3. Bb5 {[%emt 0:02:48]} a6 {[%emt 0:00:09]} 4. Ba4 {[%emt 0:00:03]} Bc5 {[%emt 0:00:07]} 5. O-O {[%emt 0:01:02]} Nge7 {[%emt 0:01:22] [#]} 6. Bb3 $146 {[%emt 0:13:33] C70: Ruy Lopez: 3...a6 4 Ba4, Norwegian and Delayed Schliemann.} (6. Nxe5 $1 $16 Nxe5 7. d4) ({Predecessor:} 6. Nxe5 Nxe5 7. d4 b5 8. Bb3 Bxd4 9. Qxd4 d6 10. Qe3 c5 11. c3 O-O 12. Qg3 c4 13. Bc2 {1-0 (64) McShane,L (2674)-Matlakov,M (2688) Tornelo INT 2021}) 6... Ng6 $11 {[%emt 0:03:11]} 7. c3 {[%emt 0:01:29]} O-O {[%emt 0:03:45]} 8. d4 {[%emt 0:00:37] White has an edge.} Ba7 {[%emt 0:00:21]} 9. Bg5 {[%emt 0:15:34]} Qe8 {[%emt 0:01:25]} 10. Re1 {[%emt 0:00:22]} d6 {[%emt 0:01:19]} 11. h3 {[%emt 0:02:16]} Kh8 {[%emt 0:02:34]} 12. Na3 {[%emt 0:08:20]} Bd7 {[%emt 0:06:52]} 13. Bd5 {[%emt 0:12:31]} Rb8 {[%emt 0:02:58]} 14. Nc2 {[%emt 0:02:05]} f6 {[%emt 0:08:43]} 15. Be3 {[%emt 0:00:30]} Nce7 {[%emt 0:00:42] Against a4} 16. Bb3 {[%emt 0:03:09]} Ra8 {[%emt 0:03:10]} 17. Nb4 {[%emt 0:14:32]} a5 {[%emt 0:04:44]} 18. Nd5 {[%emt 0:01:24]} Nxd5 {[%emt 0:01:08]} 19. Bxd5 {[%emt 0:00:08]} Qc8 {[%emt 0:13:21]} 20. a4 {[%emt 0:03:29]} Be6 {[%emt 0:03:58]} 21. Bxe6 {[%emt 0:02:58]} Qxe6 {[%emt 0:00:02]} 22. Qd3 {[%emt 0:00:53]} Qf7 {[%emt 0:08:13]} 23. Rac1 {[%emt 0:07:12]} Rfe8 {[%emt 0:04:27]} 24. Qc2 {[%emt 0:03:36]} Kg8 {[%emt 0:04:32] Weighted Error Value: White=0.16 (very precise) /Black=0.10 (very precise)} 1/2-1/2